Department Family,Entity,Expense Type,Expense Area,Vendor Name, Amount ,Transaction number,Date
DCMS,Arts Council England,Business Systems Maintenance,IT Staff & Admin,Granicus Canada Holdings ULC,"150,316.31",PIN0009348,28/03/2024
DCMS,Arts Council England,Professional Fees,Environmental sustainability,Julie's Bicycle,"126,870.00",PIN0009084,20/03/2024
DCMS,Arts Council England,Rent,Estates London,BFI Enterprise Ltd,"87,024.92",PIN0009038,13/03/2024
DCMS,Arts Council England,Computer Running Costs,IT Staff & Admin,Ballicom Limited,"38,232.00",PIN0009128,20/03/2024
DCMS,Arts Council England,Building service charge,Estates South West,CBRE,"38,142.00",PIN0008982,13/03/2024
DCMS,Arts Council England,Business Systems Development,Management of the CCP Statutory Function,Public Digital Limited,"28,800.00",PIN0009157,20/03/2024
DCMS,Arts Council England,Business Systems Development,Management of the CCP Statutory Function,Public Digital Limited,"28,800.00",PIN0009155,20/03/2024
DCMS,Arts Council England,Computer Running Costs,IT Staff & Admin,Azeus UK Limited,"25,734.00",PIN0009215,20/03/2024
DCMS,Arts Council England,Consultants - Project Management,Libraries Development IAE,Storm ID,"25,632.00",PIN0008852,06/03/2024
DCMS,Arts Council England,Professional Fees,Delivery Plan fit for the future,Burges Salmon LLP,"25,437.60",PIN0009119,20/03/2024
DCMS,Arts Council England,Security Costs,Estates North West,Mitie Technical Facilities Man,"21,438.89",PIN0008824,06/03/2024
DCMS,Arts Council England,Building service charge,Estates York,Workman LLP - Leeds office,"20,556.00",PIN0009068,20/03/2024
DCMS,Arts Council England,Building service charge,Estates London,BFI Enterprise Ltd,"20,405.23",PIN0009059,13/03/2024
DCMS,Arts Council England,Reasonable Adjustments,HR Organisation,InChorus Group Ltd,"20,400.00",PIN0008820,06/03/2024
DCMS,Arts Council England,Storage,Arts Council Collection Storage,Southbank Centre,"19,916.70",PIN0009151,20/03/2024
DCMS,Arts Council England,Procurement Card Invoice,Central Costs,Natwest Bank,"19,806.84",PIN0009073,14/03/2024
DCMS,Arts Council England,Consultants - Research,Research Discretionary,DHA Communications Ltd,"19,416.17",PIN0008899,06/03/2024
DCMS,Arts Council England,Computer Running Costs,IT Staff & Admin,Maintel Europe Ltd,"19,147.87",PIN0009164,20/03/2024
DCMS,Arts Council England,Computer Running Costs,IT Staff & Admin,NG-IT Ltd,"18,454.46",PIN0009165,20/03/2024
DCMS,Arts Council England,Reasonable Adjustments,HR Organisation,SigningWorks Ltd,"15,123.24",PIN0008901,06/03/2024
DCMS,Arts Council England,PPE Heritage Assets  - Additions,Arts Staff & Admin,Maximillian William London Ltd,"14,400.00",PIN0009016,13/03/2024
DCMS,Arts Council England,PPE Heritage Assets  - Additions,Arts Staff & Admin,Ratnam Projects Ltd,"14,280.00",PIN0009014,13/03/2024
DCMS,Arts Council England,Reasonable Adjustments,HR Organisation,SigningWorks Ltd,"14,278.67",PIN0009131,20/03/2024
DCMS,Arts Council England,PPE Heritage Assets  - Additions,Arts Staff & Admin,Matt's Gallery Ltd,"13,200.00",PIN0008834,06/03/2024
DCMS,Arts Council England,ACE membership of professional bodies,Finance,CIFAS,"12,114.60",PIN0009133,20/03/2024
DCMS,Arts Council England,Computer Running Costs,IT Staff & Admin,Espria Limited,"11,859.05",PIN0008932,13/03/2024
DCMS,Arts Council England,Computer Running Costs,IT Staff & Admin,Maintel Europe Ltd,"11,260.58",PIN0009140,20/03/2024
DCMS,Arts Council England,Professional Fees,Enterprise & Innovation,Julie's Bicycle,"10,500.00",PIN0009083,20/03/2024
DCMS,Arts Council England,Professional Fees,Creative People and Places IAE,Peanut and Crumb,"10,500.00",PIN0009204,20/03/2024
DCMS,Arts Council England,Computer Running Costs,IT Staff & Admin,Ballicom Limited,"10,200.00",PIN0008981,13/03/2024
DCMS,Arts Council England,Professional Fees,Artsmark Programme,Services supplied by individual trader,"10,000.00",PIN0008928,13/03/2024
DCMS,Arts Council England,Events,Arts & Culture Digital,The Stage Media Company Ltd,"9,999.00",PIN0009117,20/03/2024
DCMS,Arts Council England,IT Equipment - Cost - Additions,IT Projects,Dickerman Overseas Contracting Comp,"9,826.80",PIN0008936,13/03/2024
DCMS,Arts Council England,Web Costs,Arts & Culture Digital,CTI Digital Limited,"9,696.00",PIN0009190,20/03/2024
DCMS,Arts Council England,Sundry Expenses,Delivery Plan Supporting Individuals,Services supplied by individual trader,"9,000.00",PIN0008866,06/03/2024
DCMS,Arts Council England,Professional Fees,South East Discretionary IAE,Sarah Boiling Associates Ltd,"8,996.40",PIN0008949,13/03/2024
DCMS,Arts Council England,Building service charge,Corporate Services estates & facilities - South East,Avison Young (UK) Ltd (Brighton),"8,567.50",PIN0008880,06/03/2024
DCMS,Arts Council England,Consultancy - Legal,Arts Council Collection Storage,Burges Salmon LLP,"8,446.80",PIN0008987,13/03/2024
DCMS,Arts Council England,Business Systems Development,Artsmark Pay & Non Pay,The User Experience Business Ltd trading as UXB London,"8,164.80",PIN0009186,20/03/2024
DCMS,Arts Council England,Professional Fees,HR Recruitment,Access Media CIC T/A Creative Acces,"7,620.00",PIN0009125,20/03/2024
DCMS,Arts Council England,Rent,Estates North East,The National Lottery Community Fund,"7,113.37",PIN0009065,14/03/2024
DCMS,Arts Council England,IT Equipment - Cost - Additions,IT Projects,Dickerman Overseas Contracting Comp,"6,868.80",PIN0008839,06/03/2024
DCMS,Arts Council England,Employee reward programmes,HR Organisation,Book Tokens Ltd,"6,624.00",PIN0009172,20/03/2024
DCMS,Arts Council England,Professional Fees,Digital Culture Network,RedCat Solutions Limited,"6,340.50",PIN0009040,13/03/2024
DCMS,Arts Council England,Secondments,Governance,Historic England,"6,172.20",PIN0009001,13/03/2024
DCMS,Arts Council England,Corporate Training,HR Learning & Development,Arts Marketing Association,"5,460.00",PIN0009104,20/03/2024
DCMS,Arts Council England,Professional Fees,Artsmark Pay & Non Pay,Remote Digital,"5,394.00",PIN0009333,28/03/2024
DCMS,Arts Council England,Agency Staff,Arts & Culture Admin,Alexander Mann Solutions Limited,"5,354.54",PIN0008994,13/03/2024
DCMS,Arts Council England,Access Support (External),HR Organisation,SigningWorks Ltd,"5,310.00",PIN0009027,13/03/2024
DCMS,Arts Council England,Computer Running Costs,IT Staff & Admin,Equinix (UK) Limited,"5,178.24",PIN0008903,06/03/2024
DCMS,Arts Council England,Professional Fees,Artsmark Pay & Non Pay,Education Intelligence Ltd,"5,011.20",PIN0009210,20/03/2024
DCMS,Arts Council England,Professional Fees,Artsmark Pay & Non Pay,Magic Acorns,"4,998.00",PIN0009000,13/03/2024
DCMS,Arts Council England,Web Costs,Goal 3 IAE,Net Efficiency Ltd,"4,884.00",PIN0009111,20/03/2024
DCMS,Arts Council England,Events,Arts & Culture Digital,C'Art Art Transport LTD,"4,776.00",PIN0009069,20/03/2024
DCMS,Arts Council England,Web Costs,Digital Culture Network,Persona Tile Limited,"4,725.00",PIN0009132,20/03/2024
DCMS,Arts Council England,Intervention Reviews,Investment Funding Programmes,Services supplied by individual trader,"4,500.00",PIN0009202,20/03/2024
DCMS,Arts Council England,Consultancy - Legal,HR Organisation,LNRS Data Services Limited,"4,500.00",PIN0009081,20/03/2024
DCMS,Arts Council England,PPE Heritage Assets  - Additions,Arts Staff & Admin,Services supplied by individual trader,"4,500.00",PIN0009127,20/03/2024
DCMS,Arts Council England,Professional Fees,Management of the CCP Statutory Function,Creative Arts Social Consultancy Ltd,"4,500.00",PIN0009136,20/03/2024
DCMS,Arts Council England,Consultancy - Legal,HR Organisation,Gateley PLC,"4,320.00",PIN0008938,13/03/2024
DCMS,Arts Council England,Printing and Accessible Formats,Arts & Culture Digital,A2i Transcription Services,"4,014.00",PIN0009071,20/03/2024
DCMS,Arts Council England,Legal Fees,HR Organisation,Gateley PLC,"3,900.00",PIN0008836,06/03/2024
DCMS,Arts Council England,Printing and Accessible Formats,Arts & Culture Digital,A2i Transcription Services,"3,888.00",PIN0008989,13/03/2024
DCMS,Arts Council England,Corporate Training,HR Learning & Development,Dialog Consultants Limited,"3,840.00",PIN0009188,20/03/2024
DCMS,Arts Council England,Computer Running Costs,IT Staff & Admin,Microsoft Ireland Operations Ltd,"3,678.27",PIN0009062,20/03/2024
DCMS,Arts Council England,Conference Fees,Digital Culture Network,Arts Marketing Association,"3,642.00",PIN0009095,20/03/2024
DCMS,Arts Council England,Printing and Accessible Formats,Arts & Culture Digital,A2i Transcription Services,"3,600.00",PIN0008847,06/03/2024
DCMS,Arts Council England,Placement Fees,ED Finance & Corporate Services,Michael Page International,"3,481.20",PIN0008913,06/03/2024
DCMS,Arts Council England,Placement Fees,ED Finance & Corporate Services,Michael Page International,"3,481.20",PIN0008895,06/03/2024
DCMS,Arts Council England,Professional Fees,Delivery Plan Supporting Individuals,There is an Alternative Ltd TA Tialt,"3,420.00",PIN0009183,20/03/2024
DCMS,Arts Council England,Assessor/Adviser fees,Artsmark Admin,Services supplied by individual trader,"3,380.00",PIN0009176,20/03/2024
DCMS,Arts Council England,Computer Running Costs,IT Staff & Admin,NG-IT Ltd,"3,230.80",PIN0008933,13/03/2024
DCMS,Arts Council England,Assessor/Adviser fees,Artsmark Admin,Services supplied by individual trader,"3,200.00",PIN0009189,20/03/2024
DCMS,Arts Council England,Monitoring,Investment Funding Programmes,Colchester Mercury Theatre Ltd,"3,060.00",PIN0008948,13/03/2024
DCMS,Arts Council England,Away days / Team building,Midlands,Re-Form Heritage Trading Limited,"2,980.40",PIN0009105,20/03/2024
DCMS,Arts Council England,Assessor/Advisor expenses,National Security,Gough Consultants Limited,"2,972.80",PIN0009086,20/03/2024
DCMS,Arts Council England,Legal Fees,Governance,Burges Salmon LLP,"2,970.00",PIN0008848,06/03/2024
DCMS,Arts Council England,Design and Content,Delivery Plan fit for the future,Neville Stott Design Associates Ltd,"2,940.00",PIN0008896,06/03/2024
DCMS,Arts Council England,Building service charge,Arts Council Collection Storage,Workspace Management Ltd,"2,938.88",PIN0008879,06/03/2024
DCMS,Arts Council England,Payroll Administration Costs,HR Organisation,Access UK Limited,"2,901.38",PIN0008851,06/03/2024
DCMS,Arts Council England,Assessor/Adviser fees,Artsmark Admin,Services supplied by individual trader,"2,840.00",PIN0009178,20/03/2024
DCMS,Arts Council England,Professional Fees,Artsmark Pay & Non Pay,Document Despatch Ltd,"2,704.85",PIN0009122,20/03/2024
DCMS,Arts Council England,PPE Heritage Assets  - Additions,Arts Staff & Admin,Services supplied by individual trader,"2,700.00",PIN0009229,20/03/2024
DCMS,Arts Council England,Legal Fees,Governance,Burges Salmon LLP,"2,587.20",PIN0009196,20/03/2024
DCMS,Arts Council England,Consultants - Research,Research,Services supplied by individual trader,"2,500.00",PIN0008902,06/03/2024
DCMS,Arts Council England,Consultants - Research,Research,Services supplied by individual trader,"2,500.00",PIN0009019,13/03/2024
DCMS,Arts Council England,Assessor/Adviser fees,Artsmark Admin,Services supplied by individual trader,"2,460.00",PIN0009177,20/03/2024
DCMS,Arts Council England,Design and Content,Artsmark Pay & Non Pay,Design By Day,"2,400.00",PIN0009152,20/03/2024
DCMS,Arts Council England,Printing and Accessible Formats,Arts & Culture Digital,A2i Transcription Services,"2,232.00",PIN0009199,20/03/2024
DCMS,Arts Council England,Professional Fees,Delivery Plan Supporting Individuals,Culture Radar Ltd,"2,138.00",PIN0009020,13/03/2024
DCMS,Arts Council England,Legal Fees,Governance,Burges Salmon LLP,"2,070.00",PIN0008849,06/03/2024
DCMS,Arts Council England,Away days / Team building,South East,Selladoor Venues (Peterborough) Ltd,"2,066.40",PIN0008857,06/03/2024
DCMS,Arts Council England,Professional Fees,Artsmark Pay & Non Pay,Neville Stott Design Associates Ltd,"2,000.00",PIN0009158,20/03/2024
DCMS,Arts Council England,Professional Fees,Museum Development,Samantha Bowen Museum Consultancy,"2,000.00",PIN0009018,13/03/2024
DCMS,Arts Council England,Professional Fees,Delivery Plan fit for the future,Arts Marketing Association,"1,980.00",PIN0009208,20/03/2024
DCMS,Arts Council England,Professional Fees,Management of the CCP Statutory Function,Sustainable Heritage Conservation,"1,974.00",PIN0008978,13/03/2024
DCMS,Arts Council England,Monitoring,Investment Funding Programmes,Jackson Coles LLP,"1,969.87",PIN0008823,06/03/2024
DCMS,Arts Council England,NATIONAL COUNCIL Members Expenses,Council Admin,Leonardo Hotel Management,"1,904.00",PIN0008855,12/03/2024
DCMS,Arts Council England,Professional Fees,Artsmark Pay & Non Pay,Redactive Media Sales Limited,"1,900.00",PIN0009054,13/03/2024
DCMS,Arts Council England,Single travel provider invoice,Central Costs,Corporate Travel Management (North,"1,851.89",PIN0009287,20/03/2024
DCMS,Arts Council England,Personal Development Training,HR Learning & Development,Leeds Beckett University,"1,850.00",PIN0008867,06/03/2024
DCMS,Arts Council England,Electricity,Estates West Midlands,EDF Energy - DD,"1,810.83",PIN0008979,21/03/2024
DCMS,Arts Council England,Meeting Costs - National Council,Council Admin,Midland Hotel,"1,771.50",PIN0008925,06/03/2024
DCMS,Arts Council England,Web Costs,Digital Culture Network,Adobe Systems Software Ireland Ltd,"1,769.40",PIN0009098,20/03/2024
DCMS,Arts Council England,Professional Fees,Artsmark Pay & Non Pay,Artichoke Media Limited,"1,692.00",PIN0009234,20/03/2024
DCMS,Arts Council England,Agency Staff,Investment Operations & Resources,Alexander Mann Solutions Limited,"1,670.76",PIN0009060,20/03/2024
DCMS,Arts Council England,Monitoring,Investment Funding Programmes,Jackson Coles LLP,"1,622.24",PIN0008822,06/03/2024
DCMS,Arts Council England,Reasonable Adjustments,HR Organisation,i Wyer Services,"1,575.00",PIN0009017,13/03/2024
DCMS,Arts Council England,Web Costs,Digital Culture Network,Persona Tile Limited,"1,575.00",PIN0009004,13/03/2024
DCMS,Arts Council England,Room & Venue Hire,Reviewing Committee,Royal Society of Chemistry,"1,575.00",PIN0009126,20/03/2024
DCMS,Arts Council England,Assessor/Adviser fees,Artsmark Admin,Sam Cairns Associates,"1,560.00",PIN0009175,20/03/2024
DCMS,Arts Council England,Room & Venue Hire,Cultural Communities Investment fund,BFI Enterprise Ltd,"1,536.00",PIN0008842,06/03/2024
DCMS,Arts Council England,Professional Fees,Artsmark Pay & Non Pay,Canteen Creative Productions,"1,500.00",PIN0009163,20/03/2024
DCMS,Arts Council England,Access Support (External),Access Support Fund GIA,Services supplied by individual trader,"1,500.00",PIN0009191,20/03/2024
DCMS,Arts Council England,Web Costs,Digital Culture Network,Persona Tile Limited,"1,455.00",PIN0009006,13/03/2024
DCMS,Arts Council England,Professional Fees,Digital Culture Network,Persona Tile Limited,"1,455.00",PIN0009005,11/03/2024
DCMS,Arts Council England,Room & Venue Hire,VFF Admin,Birmingham Museums Trading Limited,"1,452.00",PIN0009079,20/03/2024
DCMS,Arts Council England,Web Costs,Digital Culture Network,Accessible by Design Ltd,"1,440.00",PIN0009039,13/03/2024
DCMS,Arts Council England,Professional Fees,Museum Development,The Way Design,"1,416.00",PIN0008898,06/03/2024
DCMS,Arts Council England,Assessor/Advisor expenses,National Security,Ian Johnson Associates Limited,"1,398.12",PIN0009147,20/03/2024
DCMS,Arts Council England,Agency Staff,Investment Operations & Resources,Alexander Mann Solutions Limited,"1,362.40",PIN0009102,20/03/2024
DCMS,Arts Council England,Professional Fees,Council Admin,Star Coaches of Batley Ltd,"1,350.00",PIN0009211,20/03/2024
DCMS,Arts Council England,Assessor/Advisor expenses,National Security,Ian Johnson Associates Limited,"1,332.60",PIN0009015,13/03/2024
DCMS,Arts Council England,Professional Fees,Levelling Up Fund Admin,SigningWorks Ltd,"1,308.00",PIN0009025,13/03/2024
DCMS,Arts Council England,Access Support (External),London,SigningWorks Ltd,"1,302.00",PIN0009146,20/03/2024
DCMS,Arts Council England,Cleaning,Corporate Services estates & facilities - South East,Selectaglaze Ltd,"1,274.40",PIN0009107,20/03/2024
DCMS,Arts Council England,Access Support (External),HR Staff & Admin,Access UK Limited,"1,260.00",PIN0009216,20/03/2024
DCMS,Arts Council England,Postage and Packing,Estates London,BFI Enterprise Ltd,"1,254.36",PIN0009043,13/03/2024
DCMS,Arts Council England,Access Support (External),Access Support Fund GIA,Services supplied by individual trader,"1,250.00",PIN0009247,20/03/2024
DCMS,Arts Council England,Reasonable Adjustments,HR Organisation,JRL Occupational Health Solutions,"1,231.27",PIN0009209,20/03/2024
DCMS,Arts Council England,Reactive Maintenance,Estates West Midlands,Mitie Technical Facilities Man,"1,218.18",PIN0008924,06/03/2024
DCMS,Arts Council England,Access Support (External),Access Support Fund GIA,Services supplied by individual trader,"1,200.00",PIN0008974,13/03/2024
DCMS,Arts Council England,Access Support (External),Access Support Fund GIA,Services supplied by individual trader,"1,200.00",PIN0008917,06/03/2024
DCMS,Arts Council England,Access Support (External),Access Support Fund GIA,Services supplied by individual trader,"1,200.00",PIN0009251,20/03/2024
DCMS,Arts Council England,Access Support (External),Access Support Fund GIA,Services supplied by individual trader,"1,200.00",PIN0009232,20/03/2024
DCMS,Arts Council England,Access Support (External),Access Support Fund GIA,Kent Poetry,"1,200.00",PIN0008969,13/03/2024
DCMS,Arts Council England,Access Support (External),Access Support Fund GIA,Night Time Economy Solutions,"1,200.00",PIN0009280,20/03/2024
DCMS,Arts Council England,Access Support (External),Access Support Fund GIA,Night Time Economy Solutions,"1,200.00",PIN0009047,13/03/2024
DCMS,Arts Council England,Access Support (External),Access Support Fund GIA,Working With,"1,200.00",PIN0008890,06/03/2024
DCMS,Arts Council England,Access Support (External),Access Support Fund GIA,Ingenious Fools,"1,200.00",PIN0008869,06/03/2024
DCMS,Arts Council England,Access Support (External),Access Support Fund GIA,Services supplied by individual trader,"1,200.00",PIN0009250,20/03/2024
DCMS,Arts Council England,Events,Digital Culture Network,City of Wolverhampton Council,"1,200.00",PIN0008988,13/03/2024
DCMS,Arts Council England,Personal Development Training,Digital Accelerator Programme,City of London,"1,200.00",PIN0009064,20/03/2024
DCMS,Arts Council England,Access Support (External),Access Support Fund GIA,Services supplied by individual trader,"1,200.00",PIN0009051,13/03/2024
DCMS,Arts Council England,Access Support (External),Access Support Fund GIA,Services supplied by individual trader,"1,200.00",PIN0008940,13/03/2024
DCMS,Arts Council England,Professional Fees,Artsmark Pay & Non Pay,Design By Day,"1,200.00",PIN0009187,20/03/2024
DCMS,Arts Council England,Access Support (External),Access Support Fund GIA,Services supplied by individual trader,"1,200.00",PIN0009269,20/03/2024
DCMS,Arts Council England,Reasonable Adjustments,HR Organisation,Brighter,"1,200.00",PIN0009066,20/03/2024
DCMS,Arts Council England,Reasonable Adjustments,HR Organisation,Brighter,"1,200.00",PIN0009036,13/03/2024
DCMS,Arts Council England,Access Support (External),Access Support Fund GIA,Charlotte Hanson Associates Ltd,"1,200.00",PIN0008959,13/03/2024
DCMS,Arts Council England,Access Support (External),Access Support Fund GIA,Red Sand Arts Management,"1,200.00",PIN0009237,20/03/2024
DCMS,Arts Council England,Assessor/Advisor expenses,National Security,Trident Manor Limited,"1,173.60",PIN0009118,20/03/2024
DCMS,Arts Council England,Professional Fees,Delivery Plan placemaking,SigningWorks Ltd,"1,172.40",PIN0009097,20/03/2024
DCMS,Arts Council England,Assessor/Advisor expenses,National Security,Instrom Limited,"1,156.32",PIN0009149,20/03/2024
DCMS,Arts Council England,Assessor/Advisor expenses,National Security,Design Security Ltd,"1,141.86",PIN0009035,13/03/2024
DCMS,Arts Council England,Assessor/Advisor expenses,National Security,Trident Manor Limited,"1,125.00",PIN0009184,20/03/2024
DCMS,Arts Council England,Agency Staff,Midlands,Alexander Mann Solutions Limited,"1,112.16",PIN0009082,20/03/2024
DCMS,Arts Council England,Agency Staff,Midlands,Alexander Mann Solutions Limited,"1,112.16",PIN0008983,13/03/2024
DCMS,Arts Council England,Access Support (External),Access Support Fund GIA,Services supplied by individual trader,"1,100.00",PIN0008970,13/03/2024
DCMS,Arts Council England,Assessor/Advisor expenses,National Security,Instrom Limited,"1,056.83",PIN0009150,20/03/2024
DCMS,Arts Council England,Access Support (External),Access Support Fund GIA,Night Time Economy Solutions,"1,050.00",PIN0009281,20/03/2024
DCMS,Arts Council England,Access Support (External),Access Support Fund GIA,Services supplied by individual trader,"1,050.00",PIN0009267,20/03/2024
DCMS,Arts Council England,Access Support (External),Access Support Fund GIA,Services supplied by individual trader,"1,050.00",PIN0008971,13/03/2024
DCMS,Arts Council England,Access Support (External),Access Support Fund GIA,Services supplied by individual trader,"1,050.00",PIN0009195,20/03/2024
DCMS,Arts Council England,Professional Fees,Artsmark Pay & Non Pay,Redactive Publishing Ltd,"1,045.00",PIN0009154,20/03/2024
DCMS,Arts Council England,Meeting refreshments,London,London Borough of Camden,"1,038.00",PIN0009109,20/03/2024
DCMS,Arts Council England,Gas,Estates West Midlands,Total Energies Gas & Power,"1,024.04",PIN0009180,20/03/2024
DCMS,Arts Council England,Events,Digital Culture Network,Stockton Arts Centre,"1,020.60",PIN0009041,13/03/2024
DCMS,Arts Council England,Conference Fees,Digital Culture Network,Arts Marketing Association,"1,020.00",PIN0009085,20/03/2024
DCMS,Arts Council England,Access Support (External),Access Support Fund GIA,Services supplied by individual trader,"1,012.50",PIN0009245,20/03/2024
DCMS,Arts Council England,Access Support (External),Access Support Fund GIA,Services supplied by individual trader,"1,012.00",PIN0009228,20/03/2024
DCMS,Arts Council England,Office refreshments,Estates London,Banner Group Ltd,"1,002.02",PIN0008930,13/03/2024
DCMS,Arts Council England,Access Support (External),Access Support Fund GIA,Services supplied by individual trader,"1,000.00",PIN0009265,20/03/2024
DCMS,Arts Council England,Access Support (External),Access Support Fund GIA,Services supplied by individual trader,"1,000.00",PIN0009240,20/03/2024
DCMS,Arts Council England,Professional Fees,Diversity,November Ventures,"1,000.00",PIN0008856,06/03/2024
DCMS,Arts Council England,Access Support (External),Access Support Fund GIA,Services supplied by individual trader,"1,000.00",PIN0009255,20/03/2024
DCMS,Arts Council England,Access Support (External),Access Support Fund GIA,CLODAGH CHAPMAN,"1,000.00",PIN0009246,20/03/2024
DCMS,Arts Council England,Access Support (External),Access Support Fund GIA,Services supplied by individual trader,993.75,PIN0009243,20/03/2024
DCMS,Arts Council England,Computer Running Costs,IT Staff & Admin,M247 UK Limited,983.54,PIN0009166,27/03/2024
DCMS,Arts Council England,Room & Venue Hire,Enterprise & Innovation,BFI Enterprise Ltd,960,PIN0009193,20/03/2024
DCMS,Arts Council England,Assessor/Advisor expenses,National Security,Instrom Limited,956.28,PIN0009148,20/03/2024
DCMS,Arts Council England,Access Support (External),Access Support Fund GIA,Services supplied by individual trader,937.5,PIN0008960,13/03/2024
DCMS,Arts Council England,Printing and Accessible Formats,Arts & Culture Digital,Weald BSL,930,PIN0008990,13/03/2024
DCMS,Arts Council England,Assessor/Advisor expenses,National Security,Instrom Limited,912.83,PIN0009162,20/03/2024
DCMS,Arts Council England,Access Support (External),Delivery Plan fit for the future,SigningWorks Ltd,912,PIN0009096,20/03/2024
DCMS,Arts Council England,Access Support (External),Access Support Fund GIA,Services supplied by individual trader,900,PIN0009223,20/03/2024
DCMS,Arts Council England,Access Support (External),Access Support Fund GIA,Services supplied by individual trader,900,PIN0009063,20/03/2024
DCMS,Arts Council England,Access Support (External),Access Support Fund GIA,Services supplied by individual trader,900,PIN0009262,20/03/2024
DCMS,Arts Council England,Access Support (External),Access Support Fund GIA,Services supplied by individual trader,900,PIN0008964,13/03/2024
DCMS,Arts Council England,Professional Fees,Digital Accelerator Programme,Concert Pitch Digital Ltd,900,PIN0008939,13/03/2024
DCMS,Arts Council England,Access Support (External),Access Support Fund GIA,Services supplied by individual trader,900,PIN0008921,06/03/2024
DCMS,Arts Council England,Access Support (External),Access Support Fund GIA,Services supplied by individual trader,900,PIN0009249,20/03/2024
DCMS,Arts Council England,Access Support (External),Access Support Fund GIA,Services supplied by individual trader,900,PIN0009264,20/03/2024
DCMS,Arts Council England,Access Support (External),Access Support Fund GIA,Services supplied by individual trader,900,PIN0009233,20/03/2024
DCMS,Arts Council England,Access Support (External),Access Support Fund GIA,Services supplied by individual trader,900,PIN0008962,13/03/2024
DCMS,Arts Council England,Access Support (External),Access Support Fund GIA,Night Time Economy Solutions,900,PIN0009049,13/03/2024
DCMS,Arts Council England,Access Support (External),Access Support Fund GIA,Services supplied by individual trader,900,PIN0009261,20/03/2024
DCMS,Arts Council England,Access Support (External),Access Support Fund GIA,Services supplied by individual trader,900,PIN0009220,20/03/2024
DCMS,Arts Council England,Access Support (External),Access Support Fund GIA,Services supplied by individual trader,900,PIN0008862,06/03/2024
DCMS,Arts Council England,Access Support (External),Access Support Fund GIA,Services supplied by individual trader,900,PIN0009266,20/03/2024
DCMS,Arts Council England,Access Support (External),Access Support Fund GIA,Services supplied by individual trader,900,PIN0009274,20/03/2024
DCMS,Arts Council England,Access Support (External),Access Support Fund GIA,Services supplied by individual trader,900,PIN0008963,13/03/2024
DCMS,Arts Council England,Access Support (External),Access Support Fund GIA,Services supplied by individual trader,900,PIN0008886,06/03/2024
DCMS,Arts Council England,Access Support (External),Access Support Fund GIA,Services supplied by individual trader,900,PIN0008826,06/03/2024
DCMS,Arts Council England,Access Support (External),Access Support Fund GIA,Services supplied by individual trader,900,PIN0009212,20/03/2024
DCMS,Arts Council England,Access Support (External),Access Support Fund GIA,Services supplied by individual trader,900,PIN0008919,06/03/2024
DCMS,Arts Council England,Professional Fees,Access Support Fund GIA,Services supplied by individual trader,900,PIN0009248,20/03/2024
DCMS,Arts Council England,Access Support (External),Access Support Fund GIA,Services supplied by individual trader,900,PIN0008863,06/03/2024
DCMS,Arts Council England,Access Support (External),Access Support Fund GIA,Services supplied by individual trader,900,PIN0008972,13/03/2024
DCMS,Arts Council England,Access Support (External),Access Support Fund GIA,Services supplied by individual trader,900,PIN0009044,13/03/2024
DCMS,Arts Council England,Access Support (External),Access Support Fund GIA,Services supplied by individual trader,900,PIN0008908,06/03/2024
DCMS,Arts Council England,Access Support (External),Access Support Fund GIA,Services supplied by individual trader,900,PIN0008859,06/03/2024
DCMS,Arts Council England,Professional Fees,Cultural Development Fund IAE,HERA Regeneration Ltd,900,PIN0008881,06/03/2024
DCMS,Arts Council England,Access Support (External),Access Support Fund GIA,Services supplied by individual trader,900,PIN0009222,20/03/2024
DCMS,Arts Council England,Professional Fees,Access Support Fund GIA,This is Wyld Ltd,900,PIN0008942,13/03/2024
DCMS,Arts Council England,Access Support (External),Access Support Fund GIA,Services supplied by individual trader,900,PIN0009231,20/03/2024
DCMS,Arts Council England,Access Support (External),Access Support Fund GIA,Services supplied by individual trader,900,PIN0009224,20/03/2024
DCMS,Arts Council England,Access Support (External),Access Support Fund GIA,Services supplied by individual trader,900,PIN0008920,06/03/2024
DCMS,Arts Council England,Access Support (External),Access Support Fund GIA,Services supplied by individual trader,900,PIN0009258,20/03/2024
DCMS,Arts Council England,Access Support (External),Access Support Fund GIA,Services supplied by individual trader,900,PIN0008929,13/03/2024
DCMS,Arts Council England,Access Support (External),Access Support Fund GIA,Services supplied by individual trader,900,PIN0009252,20/03/2024
DCMS,Arts Council England,Access Support (External),Access Support Fund GIA,Services supplied by individual trader,900,PIN0009241,20/03/2024
DCMS,Arts Council England,Access Support (External),Access Support Fund GIA,Services supplied by individual trader,900,PIN0009239,20/03/2024
DCMS,Arts Council England,Access Support (External),Access Support Fund GIA,Services supplied by individual trader,900,PIN0009238,20/03/2024
DCMS,Arts Council England,Access Support (External),Access Support Fund GIA,Services supplied by individual trader,900,PIN0008968,13/03/2024
DCMS,Arts Council England,Access Support (External),Access Support Fund GIA,Services supplied by individual trader,900,PIN0008833,06/03/2024
DCMS,Arts Council England,Access Support (External),Access Support Fund GIA,Services supplied by individual trader,900,PIN0008830,06/03/2024
DCMS,Arts Council England,Access Support (External),Access Support Fund GIA,Services supplied by individual trader,900,PIN0009257,20/03/2024
DCMS,Arts Council England,Consultants - Research,Creative and Cultural Country Investement fund,DHA Communications Ltd,895,PIN0008900,06/03/2024
DCMS,Arts Council England,Agency Staff,Midlands,Alexander Mann Solutions Limited,889.73,PIN0008844,06/03/2024
DCMS,Arts Council England,Conference Fees,Digital Accelerator Programme,Ticketing Professionals Limited,885.6,PIN0008991,13/03/2024
DCMS,Arts Council England,Access Support (External),Access Support Fund GIA,Dartmoor Photographer,875,PIN0008918,06/03/2024
DCMS,Arts Council England,Access Support (External),Access Support Fund GIA,Services supplied by individual trader,864,PIN0009221,20/03/2024
DCMS,Arts Council England,Access Support (External),Access Support Fund GIA,Services supplied by individual trader,840,PIN0009235,20/03/2024
DCMS,Arts Council England,Agency Staff,Estates North West,Alexander Mann Solutions Limited,835.38,PIN0009213,20/03/2024
DCMS,Arts Council England,Agency Staff,Investment Operations & Resources,Alexander Mann Solutions Limited,835.38,PIN0009080,20/03/2024
DCMS,Arts Council England,Agency Staff,Estates North West,Alexander Mann Solutions Limited,835.38,PIN0008985,13/03/2024
DCMS,Arts Council England,Assessor/Advisor expenses,National Security,Trident Manor Limited,835.2,PIN0009185,20/03/2024
DCMS,Arts Council England,Cleaning,Estates York,Active Cleaning Limited,834.51,PIN0008931,13/03/2024
DCMS,Arts Council England,Access Support (External),Access Support Fund GIA,Services supplied by individual trader,825,PIN0009259,20/03/2024
DCMS,Arts Council England,Professional Fees,VFF Admin,Animo,820.08,PIN0009173,20/03/2024
DCMS,Arts Council England,Agency Staff,Investment Operations & Resources,Alexander Mann Solutions Limited,806.11,PIN0009108,20/03/2024
DCMS,Arts Council England,Cleaning,Estates South West,G J Treasure Cleaning Contractors,796.32,PIN0009167,20/03/2024
DCMS,Arts Council England,Professional Fees,VFF Admin,Does Stuff With Words ,795.08,PIN0009230,20/03/2024
DCMS,Arts Council England,Business Systems Development,Artsmark Pay & Non Pay,CTI Digital Limited,789.6,PIN0008980,13/03/2024
DCMS,Arts Council England,Assessor/Advisor expenses,National Security,Gough Consultants Limited,778.9,PIN0009076,20/03/2024
DCMS,Arts Council England,Agency Staff,Investment Operations & Resources,Alexander Mann Solutions Limited,778.51,PIN0008995,13/03/2024
DCMS,Arts Council England,Agency Staff,Arts & Culture Admin,Alexander Mann Solutions Limited,778.51,PIN0008993,13/03/2024
DCMS,Arts Council England,Training Loans,HR Organisation,Cyclescheme Ltd,765.99,PIN0009144,20/03/2024
DCMS,Arts Council England,Assessor/Adviser fees,Artsmark Admin,Sam Cairns Associates,760,PIN0009207,20/03/2024
DCMS,Arts Council England,Access Support (External),Access Support Fund GIA,Services supplied by individual trader,750,PIN0008832,06/03/2024
DCMS,Arts Council England,Access Support (External),Access Support Fund GIA,Services supplied by individual trader,750,PIN0009052,13/03/2024
DCMS,Arts Council England,Access Support (External),Access Support Fund GIA,Services supplied by individual trader,750,PIN0009275,20/03/2024
DCMS,Arts Council England,Access Support (External),Access Support Fund GIA,Scott Brewster Ltd,750,PIN0008966,13/03/2024
DCMS,Arts Council England,Access Support (External),Access Support Fund LOT,Services supplied by individual trader,750,PIN0008912,06/03/2024
DCMS,Arts Council England,Access Support (External),Access Support Fund LOT,Services supplied by individual trader,750,PIN0008888,06/03/2024
DCMS,Arts Council England,Access Support (External),Access Support Fund GIA,Services supplied by individual trader,750,PIN0008973,13/03/2024
DCMS,Arts Council England,Access Support (External),Access Support Fund GIA,WordSetFree Ltd,750,PIN0009056,13/03/2024
DCMS,Arts Council England,Assessor/Advisor expenses,National Security,Nigel Cook Consulting Ltd,739.99,PIN0008733,06/03/2024
DCMS,Arts Council England,Panel Meetings - Costs,Accept. Lieu & Cultural Gifts Sch.,Royal Society of Chemistry,697.2,PIN0009002,13/03/2024
DCMS,Arts Council England,Agency Staff,North,Alexander Mann Solutions Limited,694.9,PIN0009106,20/03/2024
DCMS,Arts Council England,Meeting Costs - Area Council,Midlands,Nottingham City Council,684,PIN0009099,20/03/2024
DCMS,Arts Council England,Access Support (External),Digital Culture Network,SigningWorks Ltd,684,PIN0009012,13/03/2024
DCMS,Arts Council England,Personal Development Training,HR Learning & Development,Chartered Institute of Public,684,PIN0008999,13/03/2024
DCMS,Arts Council England,Professional Fees,Digital Accelerator Programme,Services supplied by individual trader,675,PIN0009134,20/03/2024
DCMS,Arts Council England,Access Support (External),Access Support Fund GIA,Services supplied by individual trader,675,PIN0008910,06/03/2024
DCMS,Arts Council England,Agency Staff,Estates North West,Alexander Mann Solutions Limited,668.3,PIN0008846,06/03/2024
DCMS,Arts Council England,Agency Staff,North,Alexander Mann Solutions Limited,667.3,PIN0009100,20/03/2024
DCMS,Arts Council England,Agency Staff,North,Alexander Mann Solutions Limited,667.3,PIN0009088,20/03/2024
DCMS,Arts Council England,Agency Staff,North,Alexander Mann Solutions Limited,667.3,PIN0008984,13/03/2024
DCMS,Arts Council England,Agency Staff,North,Alexander Mann Solutions Limited,667.3,PIN0008845,06/03/2024
DCMS,Arts Council England,Postage and Packing,Artsmark Admin,Xcaliba Limited,664.8,PIN0009116,20/03/2024
DCMS,Arts Council England,Professional Fees,Estates Admin,St John Ambulance,657.6,PIN0009284,20/03/2024
DCMS,Arts Council England,Access Support (External),Access Support Fund GIA,Services supplied by individual trader,637.5,PIN0008889,06/03/2024
DCMS,Arts Council England,Access Support (External),London,SigningWorks Ltd,636,PIN0009007,13/03/2024
DCMS,Arts Council England,Access Support (External),HR Staff & Admin,Access UK Limited,630,PIN0009217,20/03/2024
DCMS,Arts Council England,Access Support (External),Access Support Fund LOT,Services supplied by individual trader,625,PIN0009268,20/03/2024
DCMS,Arts Council England,Agency Staff,North,Alexander Mann Solutions Limited,612.1,PIN0009103,20/03/2024
DCMS,Arts Council England,Employee Wellbeing,HR Organisation,JRL Occupational Health Solutions,612,PIN0008894,06/03/2024
DCMS,Arts Council England,Access Support (External),Access Support Fund LOT,Services supplied by individual trader,607.1,PIN0008911,06/03/2024
DCMS,Arts Council England,Access Support (External),Access Support Fund GIA,Services supplied by individual trader,600,PIN0009271,20/03/2024
DCMS,Arts Council England,Access Support (External),Access Support Fund GIA,Services supplied by individual trader,600,PIN0009254,20/03/2024
DCMS,Arts Council England,Access Support (External),Access Support Fund GIA,Services supplied by individual trader,600,PIN0008858,06/03/2024
DCMS,Arts Council England,Access Support (External),Access Support Fund GIA,Working With,600,PIN0009260,20/03/2024
DCMS,Arts Council England,Access Support (External),Access Support Fund GIA,Services supplied by individual trader,600,PIN0008941,13/03/2024
DCMS,Arts Council England,Access Support (External),Access Support Fund GIA,Services supplied by individual trader,600,PIN0009272,20/03/2024
DCMS,Arts Council England,Access Support (External),Access Support Fund GIA,Services supplied by individual trader,600,PIN0008906,06/03/2024
DCMS,Arts Council England,Access Support (External),Access Support Fund GIA,Renaissance Tours,600,PIN0009225,20/03/2024
DCMS,Arts Council England,Access Support (External),Access Support Fund GIA,Cloudburst Productions Ltd,600,PIN0009277,20/03/2024
DCMS,Arts Council England,Access Support (External),Access Support Fund GIA,Loam Project Ltd,600,PIN0008956,13/03/2024
DCMS,Arts Council England,Access Support (External),Access Support Fund GIA,Services supplied by individual trader,600,PIN0008860,06/03/2024
DCMS,Arts Council England,Access Support (External),Access Support Fund GIA,Services supplied by individual trader,600,PIN0009256,20/03/2024
DCMS,Arts Council England,Access Support (External),Access Support Fund GIA,Services supplied by individual trader,600,PIN0008829,06/03/2024
DCMS,Arts Council England,Access Support (External),Access Support Fund GIA,Services supplied by individual trader,600,PIN0008975,13/03/2024
DCMS,Arts Council England,Access Support (External),Access Support Fund GIA,Services supplied by individual trader,600,PIN0009270,20/03/2024
DCMS,Arts Council England,Access Support (External),Access Support Fund GIA,Services supplied by individual trader,600,PIN0009236,20/03/2024
DCMS,Arts Council England,Access Support (External),Access Support Fund GIA,Services supplied by individual trader,600,PIN0009253,20/03/2024
DCMS,Arts Council England,Access Support (External),Access Support Fund GIA,Services supplied by individual trader,600,PIN0008958,13/03/2024
DCMS,Arts Council England,Access Support (External),Access Support Fund GIA,Services supplied by individual trader,600,PIN0008957,13/03/2024
DCMS,Arts Council England,Access Support (External),Access Support Fund GIA,Services supplied by individual trader,600,PIN0008825,06/03/2024
DCMS,Arts Council England,Access Support (External),Access Support Fund GIA,Services supplied by individual trader,600,PIN0009242,20/03/2024
DCMS,Arts Council England,Access Support (External),Access Support Fund GIA,Kexx Ltd,600,PIN0008955,13/03/2024
DCMS,Arts Council England,Access Support (External),Access Support Fund GIA,Services supplied by individual trader,600,PIN0008861,06/03/2024
DCMS,Arts Council England,Postage and Packing,Estates North West,Quadient UK Ltd,577.91,PIN0009028,12/03/2024
DCMS,Arts Council England,AREA COUNCIL Members Expenses,London,Services supplied by individual trader,571.99,PIN0009289,20/03/2024
DCMS,Arts Council England,Access Support (External),Access Support Fund LOT,Services supplied by individual trader,568,PIN0009161,20/03/2024
DCMS,Arts Council England,Events,Arts & Culture Admin,House of Commons Catering Services,560.18,PIN0008934,13/03/2024
DCMS,Arts Council England,Accessibility (Internal),London,SigningWorks Ltd,546,PIN0008926,13/03/2024
DCMS,Arts Council England,Access Support (External),Access Support Fund GIA,Services supplied by individual trader,543.75,PIN0008967,13/03/2024
DCMS,Arts Council England,Monitoring,Cultural Development Fund IAE,HERA Regeneration Ltd,540,PIN0008883,06/03/2024
DCMS,Arts Council England,Access Support (External),Delivery Plan fit for the future,Stagetext,534,PIN0008916,06/03/2024
DCMS,Arts Council England,Professional Fees,Arts & Culture Digital,Level Centre Limited,528.8,PIN0009077,20/03/2024
DCMS,Arts Council England,Access Support (External),Access Support Fund GIA,Services supplied by individual trader,525,PIN0009244,20/03/2024
DCMS,Arts Council England,GAYE Control,HR Organisation,Pluxee UK LTD,520.25,PIN0009003,13/03/2024
DCMS,Arts Council England,Room & Venue Hire,Delivery Plan placemaking,Manchester Town Hall Complex Events,514.8,PIN0009181,20/03/2024
DCMS,Arts Council England,Access Support (External),Access Support Fund GIA,Services supplied by individual trader,504,PIN0009192,20/03/2024
